fUSD/lending_fUSD_20260121
["ID","MTS","AMOUNT","RATE_DAILY","PERIOD"]
[402920644,1768987675209,-500.0,0.00043233,120]
[402920645,1768987675260,-500.0,0.00043287,30]
[402920646,1768987675310,-500.0,0.00043287,120]
[402920647,1768987675359,-500.75,0.00043287,120]
[402920648,1768987675408,-500.0,0.00043287,120]
[402920649,1768987675458,-510.50744673,0.00043287,120]
[402920650,1768987675505,-544.55815855,0.00043287,120]
[402920651,1768987675551,-500.0,0.00043287,120]
[402920652,1768987675931,-500.0,0.00043287,120]
[402920653,1768987675984,-500.0,0.00043287,120]
[402920654,1768987676032,-506.41249473,0.00043287,120]
[402920655,1768987676082,-549.74234463,0.00043287,120]
[402920656,1768987676130,-500.0,0.00043287,120]
[402920657,1768987676182,-500.0,0.00043287,120]
[402920658,1768987676233,-500.0,0.00043287,120]
[402920659,1768987676283,-241.22328385,0.00043287,120]
[402920660,1768987676333,-611.38,0.00043287,120]
[402920661,1768987676382,-500.0,0.00043287,120]
[402920662,1768987676429,-863.09,0.00043287,120]
[402920663,1768987676474,-500.0,0.00043287,120]
[402920664,1768987676518,-500.0,0.00043287,60]
[402920665,1768987676563,-500.0,0.00043287,120]
[402920666,1768987676614,-500.0,0.00043287,120]
[402920667,1768987676661,-500.0,0.00043287,120]
[402920668,1768987676709,-500.0,0.00043287,120]
[402920669,1768987676756,-500.0,0.00043287,120]
[402920670,1768987676803,-500.0,0.00043287,120]
[402920671,1768987676850,-500.0,0.00043287,120]
[402920672,1768987676898,-500.0,0.00043287,120]
[402920673,1768987676947,-509.09175766,0.00043287,120]
[402920674,1768987676999,-514.9366872,0.00043287,120]
[402920675,1768987677048,-730.65,0.00043287,120]
[402920676,1768987677095,-500.0,0.00043287,120]
[402920677,1768987677146,-500.0,0.00043287,120]
[402920678,1768987677195,-500.0,0.00043287,120]
[402920679,1768987677241,-500.0,0.00043287,120]
[402920680,1768987677291,-500.0,0.00043287,120]
[402920681,1768987677337,-729.02,0.00043287,120]
[402920682,1768987677385,-738.03,0.00043287,120]
[402920683,1768987677433,-500.0,0.00043287,120]
[402920684,1768987677480,-1655.51,0.00043287,120]
[402920685,1768987677527,-500.0,0.00043287,120]
[402920686,1768987677574,-500.0,0.00043287,120]
[402920687,1768987677619,-500.0,0.00043287,120]
[402920688,1768987677667,-500.0,0.00043287,120]
[402920689,1768987677717,-500.0,0.00043287,120]
[402920690,1768987677765,-500.0,0.00043287,120]
[402920691,1768987677817,-928.92,0.00043287,120]
[402920692,1768987677865,-548.99,0.00043287,120]
[402920693,1768987677913,-500.0,0.00043287,120]
[402920694,1768987677963,-500.0,0.00043287,120]
[402920695,1768987678011,-500.0,0.00043287,120]
[402920696,1768987678060,-720.12,0.00043287,120]
[402920697,1768987678113,-500.0,0.00043287,120]
[402920698,1768987678164,-500.0,0.00043287,120]
[402920699,1768987678217,-500.0,0.00043287,120]
[402920700,1768987678266,-500.0,0.00043287,120]
[402920701,1768987678314,-206.91366855,0.00043287,120]
[402920702,1768987678361,-500.0,0.00043287,120]
[402920703,1768987678410,-677.69,0.00043287,120]
[402920704,1768987678459,-567.28,0.00043287,120]
[402920705,1768987678506,-500.0,0.00043287,120]
[402920706,1768987678553,-553.98,0.00043287,45]
[402920707,1768987678597,-500.0,0.00043287,120]
[402920708,1768987678655,-500.0,0.00043287,120]
[402920709,1768987678704,-500.0,0.00043287,120]
[402920710,1768987678750,-521.48092465,0.00043287,120]
[402920711,1768987678800,-500.0,0.00043287,120]
[402920712,1768987678849,-500.0,0.00043287,120]
[402920713,1768987678896,-500.0,0.00043287,120]
[402920714,1768987678943,-1023.9,0.00043287,120]
[402920715,1768987678990,-500.0,0.00043287,120]
[402920716,1768987679043,-545.88,0.00043287,30]
[402920717,1768987679096,-500.0,0.00043287,120]
[402920718,1768987679155,-1009.37,0.00043287,120]
[402920719,1768987679214,-500.0,0.00043287,120]
[402920720,1768987679273,-807.88,0.00043287,120]
[402920721,1768987679331,-866.91,0.00043287,120]
[402920722,1768987679388,-500.0,0.00043287,120]
[402920723,1768987679445,-537.98,0.00043287,120]
[402920724,1768987679497,-500.0,0.00043287,120]
[402920725,1768987679549,-612.25,0.00043287,120]
[402920726,1768987679598,-500.0,0.00043287,120]
[402920727,1768987679646,-514.60521225,0.00043287,120]
[402920728,1768987679696,-500.0,0.00043287,120]
[402920729,1768987679744,-500.0,0.00043287,120]
[402920730,1768987679794,-594.51,0.00043287,120]
[402920731,1768987679843,-500.0,0.00043287,120]
[402920732,1768987679892,-500.0,0.00043287,120]
[402920733,1768987679944,-500.0,0.00043287,120]
[402920734,1768987679996,-500.0,0.00043287,120]
[402920735,1768987680049,-613.42,0.00043287,120]
[402920736,1768987680100,-500.0,0.00043287,120]
[402920737,1768987680160,-674.99,0.00043287,120]
[402920738,1768987680218,-500.0,0.00043287,120]
[402920739,1768987680271,-500.0,0.00043287,120]
[402920740,1768987680323,-500.0,0.00043287,120]
[402920741,1768987680379,-617.98,0.00043287,120]
[402920742,1768987680432,-407.7480559,0.00043287,120]
[402920743,1768987680483,-500.0,0.00043287,120]
[402920744,1768987680535,-500.0,0.00043287,120]
[402920745,1768987680587,-500.0,0.00043287,120]
[402920746,1768987680642,-1026.85,0.00043287,120]
[402920747,1768987681018,-500.0,0.00043287,120]
[402920748,1768987681069,-500.0,0.00043287,60]
[402920749,1768987681122,-728.23,0.00043287,120]
[402920750,1768987681173,-500.0,0.00043287,120]
[402920751,1768987681223,-500.0,0.00043287,120]
[402920752,1768987681280,-500.0,0.00043287,120]
[402920753,1768987681334,-500.0,0.00043287,120]
[402920754,1768987681385,-794.19,0.00043287,120]
[402920755,1768987681434,-500.0,0.00043287,120]
[402920756,1768987681509,-500.0,0.00043287,120]
[402920757,1768987681563,-4166.66,0.00043287,120]
[402920758,1768987681615,-746.35,0.00043287,120]
[402920759,1768987681666,-1172.0,0.00043287,120]
[402920760,1768987681714,-500.0,0.00043287,120]
[402920761,1768987681764,-500.0,0.00043287,120]
[402920762,1768987681814,-500.0,0.00043287,120]
[402920763,1768987681865,-500.0,0.00043287,120]
[402920764,1768987681915,-664.11,0.00043287,120]
[402920765,1768987681966,-500.0,0.00043287,120]
[402920766,1768987682016,-500.0,0.00043287,120]
[402920767,1768987682066,-606.74708536,0.00043287,120]
[402920768,1768987682119,-500.0,0.00043287,120]
[402920769,1768987682174,-500.0,0.00043287,120]
[402920770,1768987682228,-500.0,0.00043287,120]
[402920771,1768987682281,-500.0,0.00043287,120]
[402920772,1768987682331,-1120.51,0.00043287,120]
[402920773,1768987682382,-500.0,0.00043287,120]
[402920774,1768987682434,-580.95,0.00043287,120]
[402920775,1768987682484,-588.65,0.00043287,120]
[402920776,1768987682532,-500.0,0.00043287,120]
[402920777,1768987682580,-885.84,0.00043287,120]
[402920778,1768987682630,-500.0,0.00043287,120]
[402920779,1768987682683,-500.0,0.00043287,60]
[402920780,1768987682736,-500.0,0.00043287,120]
[402920781,1768987682784,-500.0,0.00043287,120]
[402920782,1768987682835,-500.0,0.00043287,120]
[402920783,1768987682886,-500.0,0.00043287,120]
[402920784,1768987682937,-500.0,0.00043287,120]
[402920785,1768987682989,-691.81,0.00043287,120]
[402920786,1768987683041,-500.0,0.00043287,120]
[402920787,1768987683093,-756.07,0.00043287,120]
[402920788,1768987683150,-500.0,0.00043287,120]
[402920789,1768987683203,-534.62,0.00043287,120]
[402920790,1768987683255,-215.3964335,0.00043287,120]
[402920791,1768987683311,-500.0,0.00043287,120]
[402920792,1768987683368,-500.0,0.00043287,120]
[402920793,1768987683421,-538.11305198,0.00043287,120]
[402920794,1768987683472,-500.0,0.00043287,120]
[402920795,1768987683525,-780.78,0.00043287,120]
[402920796,1768987683579,-500.0,0.00043287,120]
[402920797,1768987683632,-500.0,0.00043287,120]
[402920798,1768987683685,-500.0,0.00043287,120]
[402920799,1768987683740,-854.36,0.00043287,120]
[402920800,1768987683794,-500.0,0.00043287,120]
[402920801,1768987683842,-500.0,0.00043287,120]
[402920802,1768987683896,-726.21,0.00043287,120]
[402920803,1768987683950,-351.03430218,0.00043287,120]
[402920804,1768987684004,-862.89,0.00043287,120]
[402920805,1768987684056,-500.0,0.00043287,120]
[402920806,1768987684114,-500.0,0.00043287,120]
[402920807,1768987684169,-342.08658451,0.00043287,120]
[402920808,1768987684224,-500.0,0.00043287,120]
[402920809,1768987684286,-412.56694986,0.00043287,120]
[402920810,1768987684348,-572.26,0.00043287,120]
[402920811,1768987684400,-500.0,0.00043287,120]
[402920812,1768987684453,-500.0,0.00043287,120]
[402920813,1768987684506,-500.0,0.00043287,120]
[402920814,1768987684560,-500.0,0.00043287,120]
[402920815,1768987684614,-500.0,0.00043287,120]
[402920816,1768987684669,-1126.09,0.00043287,120]
[402920817,1768987684722,-500.0,0.00043287,120]
[402920818,1768987684775,-757.16,0.00043287,120]
[402920819,1768987684829,-500.0,0.00043287,120]
[402920820,1768987684880,-500.0,0.00043287,120]
[402920821,1768987684929,-500.0,0.00043287,120]
[402920822,1768987684978,-560.98616728,0.00043287,120]
[402920823,1768987685031,-500.0,0.00043287,120]
[402920824,1768987685090,-1000.0,0.00043287,120]
[402920825,1768987685151,-500.0,0.00043287,120]
[402920826,1768987685204,-500.0,0.00043287,120]
[402920827,1768987685257,-500.0,0.00043287,120]
[402920828,1768987685311,-760.9,0.00043287,120]
[402920829,1768987685362,-500.0,0.00043287,120]
[402920830,1768987685414,-500.0,0.00043287,120]
[402920831,1768987685466,-668.11,0.00043287,120]
[402920832,1768987685517,-500.0,0.00043287,120]
[402920833,1768987685567,-500.0,0.00043287,120]
[402920834,1768987685618,-637.16,0.00043287,120]
[402920835,1768987685669,-505.66,0.00043287,120]
[402920836,1768987685720,-1065.16,0.00043287,120]
[402920837,1768987685771,-1064.67,0.00043287,120]
[402920838,1768987685822,-500.0,0.00043287,120]
[402920839,1768987685873,-871.03,0.00043287,120]
[402920840,1768987685930,-525.23,0.00043287,120]
[402920841,1768987685995,-500.0,0.00043287,120]
[402920842,1768987686044,-662.06,0.00043287,120]
[402920843,1768987686093,-1051.35,0.00043287,120]
[402920844,1768987686147,-1104.23,0.00043287,120]
[402920845,1768987686200,-500.0,0.00043287,120]
[402920846,1768987686253,-500.0,0.00043287,120]
[402920847,1768987686306,-662.74,0.00043287,120]
[402920848,1768987686367,-543.88,0.00043287,120]
[402920849,1768987686433,-500.0,0.00043287,120]
[402920850,1768987686496,-592.98,0.00043287,120]
[402920851,1768987686559,-500.0,0.00043287,120]
[402920852,1768987686623,-732.36,0.00043287,120]
[402920853,1768987686687,-500.0,0.00043287,120]
[402920854,1768987686749,-523.89976151,0.00043287,120]
[402920855,1768987686811,-584.28,0.00043287,120]
[402920856,1768987686872,-500.0,0.00043287,120]
[402920857,1768987686937,-512.89,0.00043287,120]
[402920858,1768987687001,-594.65,0.00043287,120]
[402920859,1768987687065,-500.0,0.00043287,120]
[402920860,1768987687133,-500.0,0.00043287,120]
[402920861,1768987687193,-500.0,0.00043287,120]
[402920862,1768987687257,-500.0,0.00043287,120]
[402920863,1768987687312,-500.0,0.00043287,120]
[402920864,1768987687376,-500.0,0.00043287,120]
[402920865,1768987687436,-500.0,0.00043287,120]
[402920866,1768987687501,-726.3,0.00043287,120]
[402920867,1768987687564,-500.0,0.00043287,120]
[402920868,1768987687625,-669.38,0.00043287,120]
[402920869,1768987687685,-500.0,0.00043287,120]
[402920870,1768987687745,-500.0,0.00043287,120]
[402920871,1768987687804,-500.0,0.00043287,120]
[402920872,1768987687862,-501.79,0.00043287,120]
[402920873,1768987687920,-500.0,0.00043287,120]
[402920874,1768987687978,-500.0,0.00043287,120]
[402920875,1768987688036,-633.52,0.00043287,120]
[402920876,1768987688099,-885.04,0.00043287,120]
[402920877,1768987688164,-500.0,0.00043287,120]
[402920878,1768987688230,-500.0,0.00043287,120]
[402920879,1768987688294,-286.53776385,0.00043287,120]
[402920880,1768987688355,-594.03,0.00043287,120]
[402920881,1768987688415,-582.17,0.00043287,120]
[402920882,1768987688474,-500.0,0.00043287,120]
[402920883,1768987688534,-500.0,0.00043287,120]
[402920884,1768987688591,-500.0,0.00043287,120]
[402920885,1768987688648,-500.0,0.00043287,120]
[402920886,1768987688703,-500.0,0.00043287,120]
[402920887,1768987688762,-500.0,0.00043287,120]
[402920888,1768987688821,-500.0,0.00043287,120]
[402920889,1768987688878,-723.02,0.00043287,120]
[402920890,1768987688939,-500.0,0.00043287,120]
[402920891,1768987688997,-500.0,0.00043287,120]
[402920892,1768987689058,-500.0,0.00043287,120]
[402920893,1768987689118,-679.71,0.00043287,120]
[402920894,1768987689177,-500.0,0.00043287,120]
[402920895,1768987689234,-714.9,0.00043287,120]
[402920896,1768987689293,-500.0,0.00043287,120]
[402920897,1768987689352,-589.5,0.00043287,120]
[402920898,1768987689408,-500.0,0.00043287,120]
[402920899,1768987689467,-500.0,0.00043287,120]
[402920900,1768987689524,-500.0,0.00043287,120]
[402920901,1768987689581,-500.0,0.00043287,120]
[402920902,1768987689645,-1331.3,0.00043287,120]
[402920903,1768987689703,-606.96,0.00043287,120]
[402920904,1768987689760,-515.74,0.00043287,120]
[402920905,1768987689817,-632.04,0.00043287,120]
[402920906,1768987689874,-513.47,0.00043287,120]
[402920907,1768987689935,-559.52,0.00043287,120]
[402920908,1768987689996,-500.0,0.00043287,120]
[402920909,1768987690055,-752.51,0.00043287,120]
[402920910,1768987690114,-500.0,0.00043287,120]
[402920911,1768987690171,-500.0,0.00043287,120]
[402920912,1768987690231,-500.0,0.00043287,120]
[402920913,1768987690293,-500.0,0.00043287,120]
[402920914,1768987690351,-500.0,0.00043287,120]
[402920915,1768987690411,-500.0,0.00043287,120]
[402920916,1768987690468,-669.57,0.00043287,120]
[402920917,1768987690526,-500.0,0.00043287,60]
[402920918,1768987690582,-500.0,0.00043287,60]
[402920919,1768987690639,-500.0,0.00043287,120]
[402920920,1768987690694,-179.29066368,0.00043287,120]
[402920921,1768987690748,-500.0,0.00043287,120]
[402920922,1768987690807,-500.0,0.00043287,120]
[402920923,1768987690863,-1155.7,0.00043287,120]
[402920924,1768987690938,-1350.75,0.00043287,120]
[402920925,1768987691014,-500.0,0.00043287,120]
[402920926,1768987691075,-529.76,0.00043287,120]
[402920927,1768987691137,-500.0,0.00043287,120]
[402920928,1768987691861,-766.15,0.00043287,120]
[402920929,1768987691948,-853.58,0.00043287,120]
[402920930,1768987692002,-841.94,0.00043287,120]
[402920931,1768987692054,-519.43,0.00043287,120]
[402920932,1768987692105,-553.2187466,0.00043287,120]
[402920933,1768987692163,-500.0,0.00043287,120]
[402920934,1768987692214,-255.04774538,0.00043287,120]
[402920935,1768987692266,-622.11,0.00043287,120]
[402920936,1768987692319,-695.08,0.00043287,120]
[402920937,1768987692370,-500.0,0.00043287,120]
[402920938,1768987692419,-586.24,0.00043287,120]
[402920939,1768987692467,-535.51,0.00043287,120]
[402920940,1768987692517,-500.0,0.00043287,120]
[402920941,1768987692567,-500.0,0.00043287,120]
[402920942,1768987692616,-644.47,0.00043287,120]
[402920943,1768987692667,-500.0,0.00043287,90]
[402920944,1768987692719,-500.0,0.00043287,120]
[402920945,1768987692771,-500.0,0.00043287,120]
[402920946,1768987692818,-500.0,0.00043287,120]
[402920947,1768987692868,-500.0,0.00043287,120]
[402920948,1768987692919,-500.0,0.00043287,120]
[402920949,1768987692969,-500.0,0.00043287,120]
[402920950,1768987693026,-696.85,0.00043287,120]
[402920951,1768987693080,-500.0,0.00043287,120]
[402920952,1768987693131,-500.0,0.00043287,120]
[402920953,1768987693189,-623.64,0.00043287,120]
[402920954,1768987693243,-889.13,0.00043287,120]
[402920955,1768987693296,-691.15,0.00043287,120]
[402920956,1768987693349,-500.0,0.00043287,120]
[402920957,1768987693399,-500.0,0.00043287,120]
[402920958,1768987693455,-567.88,0.00043287,120]
[402920959,1768987693512,-655.24,0.00043287,120]
[402920960,1768987693567,-573.60872347,0.00043287,120]
[402920961,1768987693617,-500.0,0.00043287,120]
[402920962,1768987693668,-500.0,0.00043287,120]
[402920963,1768987693718,-474.36250229,0.00043287,120]
[402920964,1768987693770,-170.13923827,0.00043287,120]
[402920965,1768987693821,-645.41,0.00043287,120]
[402920966,1768987693874,-698.04,0.00043287,120]
[402920967,1768987693924,-545.16,0.00043287,120]
[402920968,1768987693977,-507.63,0.00043287,120]
[402920969,1768987694032,-500.0,0.00043287,120]
[402920970,1768987694084,-500.0,0.00043287,120]
[402920971,1768987694137,-500.0,0.00043287,120]
[402920972,1768987694191,-600.0,0.00043288,120]
[402920973,1768987694244,-500.0,0.00043288,120]
[402920974,1768987694296,-171.0,0.000433,120]
[402920975,1768987694349,-250.38,0.00043307,120]
[402920976,1768987694403,-500.0,0.00043343,120]
[402920977,1768987694455,-8163.41795952,0.00043397,120]
[402920978,1768987694503,-500.0,0.00043398,120]
[402920979,1768987694553,-151.0,0.000434,120]
[402920980,1768987694605,-250.38,0.00043407,120]
[402920981,1768987694658,-500.0,0.00043452,120]
[402920982,1768987694709,-22579.28051916,0.000435,30]
[402920983,1768987694766,-1212757.15825455,0.000435,120]
[402920984,1768987695338,962.5,0.00043104,67]
[402920985,1768987696469,158.75607451,0.00043104,120]
[402920986,1768987696533,158.75607451,0.00043104,120]
[402920987,1768987702675,4435.20843645,0.00011,2]
[402920988,1768987703247,500.0,0.00043104,120]
[402920989,1768987708876,552.18212656,0.00015,2]
[402920990,1768987709396,205.0,9.8e-05,2]
[402920991,1768987709640,158.7560745,0.00043104,120]
[402920992,1768987709786,166.66,0.00015058,2]
[402920993,1768987709815,166.66,0.00015375,2]
[402920994,1768987709854,166.66,0.00015692,2]
[402920995,1768987709889,259.84228514,0.000101,2]
[402920996,1768987709924,166.66,0.00016009,2]
[402920997,1768987709962,166.66,0.00016326,2]
[402920998,1768987710111,1101.0,0.00043104,30]
[402920999,1768987710352,1101.0,0.00043104,30]
[402921000,1768987710486,1101.0,0.00043104,30]
[402921001,1768987710911,1101.0,0.00043104,30]
[402921002,1768987711276,1101.0,0.00043104,30]
[402921003,1768987713557,1023.89018986,0.00014,2]
[402921004,1768987714844,6587.22796629,0.0001439,2]
[402921005,1768987715912,1931.5869391,0.0001,2]
[402921006,1768987716339,391.52000759,7.888e-05,2]
[402921007,1768987717409,250.0,0.000131,2]
[402921008,1768987717744,2044.79268424,0.00015807,2]
[402921009,1768987718032,763.95,0.00043104,30]
[402921010,1768987718456,10760.98494365,0.0001,2]
[402921011,1768987718836,500.53278225,0.00043104,120]
[402921012,1768987773020,151.0,0.00043104,120]
[402921013,1768987773326,151.0,0.00043104,120]
[402921014,1768987773645,151.0,0.00043104,120]
[402921015,1768987773899,151.0,0.00043104,120]
[402921016,1768987774192,151.0,0.00043104,120]
[402921017,1768987774484,151.0,0.00043104,120]
[402921018,1768987774766,151.0,0.00043104,120]
[402921019,1768987775053,239.567751,0.00043104,120]
[402921020,1768987775952,150.0,0.00043104,30]
[402921021,1768987784183,748.3854196,0.00043104,120]
[402921022,1768987813191,189.7437325,0.00043104,120]
[402921034,1768987831443,-0.16271117,0.00016431,2]
[402921035,1768987831455,-1199.83728883,0.00016431,2]
[402921036,1768987831464,-600.0,0.00016431,2]
[402921037,1768987831473,-300.0,0.00016431,2]
[402921038,1768987831482,-493.77744492,0.00016431,2]
[402921039,1768987831491,-195.0,0.00016431,2]
[402921040,1768987831501,-741.66755747,0.00016431,2]
[402921041,1768987831510,-187.98100774,0.00016431,2]
[402921042,1768987831520,-195.0,0.00016431,2]
[402921043,1768987831529,-250.0,0.00016432,2]
[402921044,1768987831538,-195.0,0.00016432,2]
[402921045,1768987831548,-250.0,0.00016432,2]
[402921046,1768987831558,-296.5,0.00016432,2]
[402921047,1768987831568,-166.66,0.00016643,2]
[402921048,1768987831577,-384.25914132,0.00016703,2]
[402921049,1768987831586,-5759.6364948,0.00016703,2]
[402921050,1768987831602,-322.59321388,0.00016703,2]
[402921051,1768987831613,-501.01040161,0.00016703,2]
[402921052,1768987831624,-1398.98959839,0.00016703,2]
[402921053,1768987831636,-1729.6763694,0.00016703,2]
[402921054,1768987831645,-6251.52879964,0.00016703,2]
[402921055,1768987831688,-3334.76220405,0.00016703,2]
[402921056,1768987831700,-260.03248731,0.00016703,2]
[402921057,1768987831711,-906.816,0.00016703,2]
[402921058,1768987831723,-3669.89764967,0.00016703,2]
[402921061,1768987831734,-1028.25764269,0.00016703,2]
[402921064,1768987831754,-393.31891129,0.00016703,2]
[402921066,1768987831765,-1377.69079332,0.00016703,2]
[402921068,1768987831776,-1957.15258626,0.00016703,2]
[402921073,1768987831809,-500.0,0.00016702,2]
[402921075,1768987831818,-259360.32988332,0.00016703,2]
[402921106,1768987837464,-500.0,0.00016702,2]
[402921107,1768987837474,-500.0,0.00016702,2]
[402921108,1768987837484,-500.0,0.00016702,2]
[402921109,1768987837494,-500.0,0.00016702,2]
[402921110,1768987837503,-500.0,0.00016702,2]
[402921111,1768987837513,-500.0,0.00016702,2]
[402921112,1768987837523,-257.2220848,0.00016702,2]
[402921113,1768987837534,-500.0,0.00016702,2]
[402921114,1768987837544,-500.0,0.00016702,2]
[402921115,1768987837553,-500.0,0.00016702,2]
[402921116,1768987837562,-500.0,0.00016702,2]
[402921117,1768987837571,-500.0,0.00016702,2]
[402921118,1768987837580,-500.0,0.00016702,2]
[402921119,1768987837589,-500.0,0.00016702,2]
[402921120,1768987837599,-500.0,0.00016702,2]
[402921121,1768987837608,-500.0,0.00016702,2]
[402921122,1768987837617,-500.0,0.00016702,2]
[402921123,1768987837627,-500.0,0.00016702,2]
[402921124,1768987837635,-500.0,0.00016702,2]
[402921125,1768987837644,-325.54372,0.00016702,2]
[402921126,1768987837654,-721460.21304245,0.00016703,2]
[402921127,1768987837663,-1280.1591,0.00016803,2]
[402921128,1768987837672,-150.00550228,0.00016825,2]
[402921129,1768987837681,-9711.90607803,0.00016836,2]
[402921130,1768987837691,-718.005,0.00016844,2]
[402921131,1768987837700,-165.688,0.00016844,2]
[402921132,1768987837709,-384.25914127,0.00016874,2]
[402921133,1768987837719,-289.43108492,0.00016877,2]
[402921134,1768987837728,-21649.17057149,0.00016877,2]
[402921135,1768987837737,-230.49185109,0.00016891,2]
[402921136,1768987837746,-500.0,0.00016902,2]
[402921137,1768987837755,-500.0,0.00016902,2]
[402921138,1768987837764,-680.76,0.00016902,2]
[402921139,1768987837773,-500.0,0.00016902,2]
[402921140,1768987837782,-499.99999983,0.00016902,2]
[402921141,1768987837791,-500.0,0.00016902,2]
[402921142,1768987837800,-500.0,0.00016902,2]
[402921143,1768987837810,-500.0,0.00016902,2]
[402921144,1768987837819,-500.0,0.00016902,2]
[402921145,1768987837829,-500.0,0.00016902,2]
[402921146,1768987838137,-500.0,0.00016902,2]
[402921147,1768987838147,-500.0,0.00016902,2]
[402921148,1768987838158,-500.0,0.00016902,2]
[402921149,1768987838167,-500.0,0.00016902,2]
[402921150,1768987838176,-500.0,0.00016902,2]
[402921151,1768987838186,-500.0,0.00016902,2]
[402921152,1768987838195,-511.10431069,0.00016902,2]
[402921153,1768987838204,-500.0,0.00016902,2]
[402921154,1768987838213,-9711.90607803,0.00016969,2]
[402921155,1768987838224,-21649.17057149,0.00016991,2]
[402921156,1768987838233,-250.0,0.00017,2]
[402921157,1768987838242,-1000.0,0.00017003,2]
[402921158,1768987838252,-384.25914127,0.00017045,2]
[402921159,1768987838261,-406.40115106,0.00017072,2]
[402921160,1768987838270,-347.95260072,0.00017072,2]
[402921161,1768987838280,-419.19507964,0.00017072,2]
[402921162,1768987838290,-348.24408228,0.00017072,2]
[402921163,1768987838299,-191.49199704,0.00017072,2]
[402921164,1768987838309,-500.0,0.00017072,2]
[402921165,1768987838318,-570.47502386,0.00017072,2]
[402921166,1768987838328,-175.58159846,0.00017073,2]
[402921167,1768987838337,-500.94467747,0.00017073,2]
[402921168,1768987838347,-501.21925322,0.00017073,2]
[402921169,1768987838356,-173.35264112,0.00017073,2]
[402921170,1768987838366,-170.10703562,0.00017073,2]
[402921171,1768987838375,-173.55705579,0.00017073,2]
[402921172,1768987838385,-501.12504577,0.00017073,2]
[402921173,1768987838395,-501.78111653,0.00017073,2]
[402921174,1768987838404,-167.87587796,0.00017073,2]
[402921175,1768987838413,-500.0,0.00017073,2]
[402921176,1768987838423,-501.62278833,0.00017073,2]
[402921177,1768987838431,-500.89562511,0.00017073,2]
[402921178,1768987838440,-225.1354509,0.00017073,2]
[402921179,1768987838449,-500.0,0.00017073,2]
[402921180,1768987838458,-500.0,0.00017073,2]
[402921181,1768987838468,-500.59297437,0.00017073,2]
[402921182,1768987838477,-502.32372239,0.00017073,2]
[402921183,1768987838486,-501.73705507,0.00017073,2]
[402921184,1768987838495,-500.6119985,0.00017073,2]
[402921185,1768987838504,-500.82647846,0.00017073,2]
[402921186,1768987838513,-500.70403813,0.00017073,2]
[402921187,1768987838522,-500.0,0.00017073,2]
[402921188,1768987838531,-166.23513753,0.00017073,2]
[402921189,1768987838540,-177.45121096,0.00017073,2]
[402921190,1768987838549,-500.6007219,0.00017073,2]
[402921191,1768987838558,-500.0,0.00017073,2]
[402921192,1768987838570,-164.44455647,0.00017073,2]
[402921193,1768987838579,-217.33264691,0.00017073,2]
[402921194,1768987838588,-500.0,0.00017073,2]
[402921195,1768987838598,-501.05525398,0.00017073,2]